Cogmind - Beta 9.6 @@@ ROGUE MODE // 2020.08.24 @ 19:47:43 Player: Cracklepappy Result: Destroyed by 8R-AWN with 8R-AWN's Boregun Performance ------------- Evolutions (0) 0 Regions Visited (3) 600 Robots Destroyed (27) 135 Value Destroyed (551) 551 Prototype IDs (24) 480 Alien Tech Used (0) 0 Bonus (283) 283 TOTAL SCORE: 2049 Bonus ------- Aligned with FarCom 300 Friendly Fire -17 Cogmind --------- Core Integrity 0/250 Matter 287/300 Energy 240/250 System Corruption 0% Temperature Cool (85) Movement Treading (200) Ox2 Location -10/Exiles Parts ------- > --- POWER (1) -------- Ion Engine > --- PROPULSION (2) --- Light Treads Light Treads > --- UTILITY (2) ------ Humpback > --- WEAPON (2) ------- Beamcaster Heavy Assault Rifle > --- INVENTORY (24) --- Light Ion Engine Light Ion Engine Light Treads Light Treads Light Treads Light Treads Light Treads Light Treads Improved Heat Sink High-capacity Storage Unit High-capacity Storage Unit Humpback Humpback High-capacity Battery (400) High-capacity Matter Pod (200) Trap Reconfigurator Beam Cannon Field Lobotomy Kit Signal Generator Peak State ------------ > --- POWER ------------ Ion Engine > --- PROPULSION ------- Light Treads Light Treads > --- UTILITY ---------- Humpback > --- WEAPON ----------- Beamcaster Heavy Assault Rifle > --- INVENTORY -------- Light Ion Engine Light Ion Engine Light Treads Light Treads Light Treads Light Treads Light Treads Light Treads Improved Heat Sink High-capacity Storage Unit High-capacity Storage Unit Humpback Humpback High-capacity Battery High-capacity Matter Pod Trap Reconfigurator Beam Cannon Field Lobotomy Kit Signal Generator [Rating: 16] Favorites ----------- Power Ion Engine Engine Ion Engine Propulsion Light Treads Treads Light Treads Wheel Wheel Utility High-capacity Storage Unit Storage High-capacity Storage Unit Weapon EM Pulse Gun Energy Gun EM Pulse Gun Energy Cannon Beam Cannon Ballistic Gun Heavy Assault Rifle Special Weapon Mining Laser Build | -11 -10 -10 -10 ------- Run | Scr Mat Min Exi Slots Evolved . | . . . . Power . | . . . . Propulsion . | . . . . Utility . | . . . . Weapon . | . . . . Parts Attached 29 | 7 12 6 4 Power 3 | 1 2 . . Engine 3 | 1 2 . . Core . | . . . . Reactor . | . . . . Propulsion 9 | 2 3 2 2 Treads 6 | . 2 2 2 Leg . | . . . . Wheel 3 | 2 1 . . Hover . | . . . . Flight . | . . . . Utility 5 | 2 2 . 1 Device . | . . . . Storage 5 | 2 2 . 1 Processor . | . . . . Hackware . | . . . . Protection . | . . . . Artifact . | . . . . Weapon 12 | 2 5 4 1 Energy Gun 5 | 1 3 . 1 Energy Cannon 2 | . . 2 . Ballistic Gun 3 | 1 . 2 . Ballistic Cannon . | . . . . Launcher . | . . . . Special Weapon 2 | . 2 . . Impact Weapon . | . . . . Slashing Weapon . | . . . . Piercing Weapon . | . . . . Special Melee Weapon . | . . . . Unidentified Prototypes . | . . . . Parts Lost 5 | . 3 2 . Power . | . . . . Propulsion . | . . . . Utility . | . . . . Weapon 5 | . 3 2 . Highest Loss Streak 2 | . 2 1 . Average Slot Usage (%) 93 | . 97 97 86 Engine 14 | . 14 14 14 Treads 22 | . 4 28 28 Wheel 5 | . 23 . . Storage 23 | . 28 28 15 Energy Gun 8 | . 21 8 . Energy Cannon 6 | . . 4 13 Ballistic Gun 9 | . . 10 14 Special Weapon 2 | . 4 3 . Naked Turns . | . . . . Heaviest Build 93 | 15 58 59 93 Greatest Support 40 | 26 40 40 40 Greatest Overweight (x) 5 | . 5 1 2 Average Overweight (x) 1 | . 1 1 1 Largest Inventory Capacity 24 | 8 18 18 24 Average Capacity 18 | 7 15 18 23 Most Carried 24 | 8 18 18 24 Average Carried 17 | 6 14 17 21 Final Capacity 24 | 8 18 18 24 Final Carried 21 | 8 18 18 21 Class Distribution -------------------- 47% | Mutant 33% | Hauler-Mutant 18% | Scavenger-Mutant Dominant Class ---------------- Mutant | -10/Materials Mutant | -10/Mines Hauler-Mutant | -10/Exiles Resources | -11 -10 -10 -10 ----------- Run | Scr Mat Min Exi Matter Collected 666 | 270 131 212 53 Remotely . | . . . . Salvage Created 959 | 189 433 337 . Parts 51 | 13 24 14 . Haulers Intercepted 2 | . 2 . . Recyclers Shooed 1 | . . 1 . Parts Field Recycled . | . . . . Retrieved Matter . | . . . . Parts Self-Destructed . | . . . . Prevented . | . . . . Kills | -11 -10 -10 -10 ------- Run | Scr Mat Min Exi Combat Hostiles Destroyed 14 | . 5 9 . Guns 10 | . 4 6 . Cannons 2 | . . 2 . AOE 1 | . 1 . . Classes Destroyed 7 | 2 4 1 . Worker 4 | . 4 . . Tunneler 5 | 5 . . . Hauler 2 | . 2 . . Recycler 1 | 1 . . . Watcher 1 | . 1 . . Swarmer 3 | . . 3 . Grunt 11 | . 5 6 . Best Kill Streak 4 | 3 4 3 . Combat Bots Only 3 | . 2 3 . Max Kills in Single Turn 2 | 1 2 1 . Gunslinging . | . . . . Exploded 1 | . 1 . . Melee . | . . . . Uniques/NPCs Destroyed 1 | . . . 1 EX-DEC (-10/Exiles) EX-BIN (-10/Exiles) EX-HEX (-10/Exiles) Combat | -11 -10 -10 -10 -------- Run | Scr Mat Min Exi Damage Taken 1081 | . 414 553 114 Core 255 | . 91 118 46 Absorbed by Shields . | . . . . Core Remaining (%) 100 | 100 . . . Volleys Fired 114 | 25 50 35 4 Largest 2 | 1 2 2 1 Hottest 105 | 40 105 100 75 Shots Fired 143 | 25 60 54 4 Gun 120 | 25 51 40 4 Cannon 14 | . . 14 . Launcher . | . . . . Special 9 | . 9 . . Kinetic 17 | . . 16 1 Thermal 28 | . 11 14 3 Explosive . | . . . . Electromagnetic 98 | 25 49 24 . Robot Hit Streak 12 | 3 12 9 3 Robot Miss Streak 5 | 3 3 5 1 Penetration Max . | . . . . Secondary Targets . | . . . . Shots Hit Robots 86 | 13 35 35 3 Core Hits 41 | 7 19 14 1 Critical Hits 1 | . . 1 . Critical Kills 1 | . . 1 . Critical Parts Destroyed . | . . . . Melee Attacks . | . . . . Impact . | . . . . Slashing . | . . . . Piercing . | . . . . Sneak Attacks . | . . . . Combat Hostiles . | . . . . Follow-up Attacks . | . . . . Damage Inflicted 1697 | 234 923 534 6 Guns 1152 | 198 551 397 6 Cannons 137 | . . 137 . Explosions 408 | 36 372 . . Melee . | . . . . Ramming . | . . . . Kinetic 179 | . . 179 . Thermal 583 | 36 404 137 6 Explosive . | . . . . Electromagnetic 935 | 198 519 218 . Impact . | . . . . Slashing . | . . . . Piercing . | . . . . Highest Corruption . | . . . . Average Corruption . | . . . . Corruption Purged . | . . . . Overload Shots . | . . . . Overflow Damage 19 | 19 . . . Projectiles . | . . . . Explosions 19 | 19 . . . Melee . | . . . . Knockbacks . | . . . . Impact . | . . . . Kinetic . | . . . . Secondary . | . . . . Self-Inflicted Damage 25 | . 25 . . Shots 1 | . 1 . . Rammed . | . . . . Targets Rammed . | . . . . Kicked . | . . . . Crushed . | . . . . Highest Temperature 216 | . 90 216 85 Average Temperature 51 | . 27 81 51 Received Heat Transfer 420 | . 213 207 . Siege Activations . | . . . . Robots Corrupted 1 | . . 1 . Combat Hostiles 1 | . . 1 . Parts Fried 4 | . 4 . . Impact Corruptions . | . . . . Robots Melted . | . . . . Combat Hostiles . | . . . . Parts Melted 4 | . . 4 . Heat Transferred 797 | 50 424 296 27 Parts Sabotaged . | . . . . Parts Stolen . | . . . . Parts Stripped . | . . . . Power Chain Reactions 3 | 1 2 . . Missiles Intercepted . | . . . . Alert | -11 -10 -10 -10 ------- Run | Scr Mat Min Exi Peak Influence 169 | 30 169 101 . Average Influence 51 | 14 73 43 . Maximum Alert Level . | . . . . Low Security (%) 100 | 100 100 100 . Level 1 . | . . . . Level 2 . | . . . . Level 3 . | . . . . Level 4 . | . . . . Level 5 . | . . . . High Security . | . . . . Max Security . | . . . . Squads Dispatched 4 | . 3 1 . Investigation 1 | . 1 . . Extermination . | . . . . Reinforcement 2 | . 2 . . Assault 1 | . . 1 . Garrison . | . . . . Intercept . | . . . . Construction Impeded . | . . . . Haulers Reinforced . | . . . . Stealth | -11 -10 -10 -10 --------- Run | Scr Mat Min Exi Distress Signals 2 | . 2 . . Communications Jammed . | . . . . Distress Signals . | . . . . Times Spotted 40 | . 21 11 8 Peak Tracking Total 9 | . 4 3 9 Tactical Retreats 1 | . . 1 . Traps | -11 -10 -10 -10 ------- Run | Scr Mat Min Exi Traps Triggered 1 | . 1 . . Indirectly . | . . . . Trap Hack Attempts . | . . . . Triggered . | . . . . Disarmed . | . . . . Reprogrammed . | . . . . Reused . | . . . . Traps Extracted . | . . . . Installed . | . . . . Triggered 1 | . . 1 . Machines | -11 -10 -10 -10 ---------- Run | Scr Mat Min Exi Machines Disabled 6 | . 3 . 3 Max in Single Turn 2 | . 2 . 1 Machines Sabotaged . | . . . . Garrisons Compromised . | . . . . Overloaded Fab Kills . | . . . . Fab Network Shutdowns . | . . . . Hacking | -11 -10 -10 -10 --------- Run | Scr Mat Min Exi Machines Accessed 8 | . 3 . 5 Terminals 3 | . 3 . . Fabricators . | . . . . Repair Stations . | . . . . Recycling Units . | . . . . Scanalyzers . | . . . . Garrison Access . | . . . . Total Hacks 58 | . 9 . 49 Successful 52 | . 3 . 49 Failed 6 | . 6 . . Catastrophic . | . . . . Database Lockouts . | . . . . Manual 18 | . 2 . 16 Terminals 9 | . 9 . . Fabricators . | . . . . Repair Stations . | . . . . Recycling Units . | . . . . Scanalyzers . | . . . . Garrison Access . | . . . . Terminal Hacks 52 | . 3 . 49 Record 48 | . . . 48 Prototype ID Bank 2 | . 2 . . Zone Layout 1 | . 1 . . EX-Prototype ID Bank 1 | . . . 1 Fabricator Hacks . | . . . . Repair Station Hacks . | . . . . Recycling Unit Hacks . | . . . . Scanalyzer . | . . . . Garrison Access Hacks . | . . . . Unauthorized Hacks . | . . . . Terminals . | . . . . Fabricators . | . . . . Repair Stations . | . . . . Recycling Units . | . . . . Scanalyzers . | . . . . Garrison Access . | . . . . Data Cores Recovered . | . . . . Used . | . . . . Hacking Detections 3 | . 3 . . Full Trace Events . | . . . . Feedback Events . | . . . . Feedback Blocked . | . . . . Robot Schematics Acquired . | . . . . Robots Built . | . . . . Matter . | . . . . Time . | . . . . Total Robot Build Rating . | . . . . Part Schematics Acquired . | . . . . Parts Built . | . . . . Matter . | . . . . Time . | . . . . Total Part Build Rating . | . . . . Parts Repaired . | . . . . Time . | . . . . Parts Recycled . | . . . . Recycled Matter . | . . . . Retrieved Matter . | . . . . Retrieved Components . | . . . . Parts Scanalyzed . | . . . . Part Schematics Acquired . | . . . . Parts Damaged . | . . . . Bothacking | -11 -10 -10 -10 ------------ Run | Scr Mat Min Exi Used RIF Installer . | . . . . Robots Hacked . | . . . . Non-combat . | . . . . Combat . | . . . . Robot Hacks Applied . | . . . . Relay Couplers Released . | . . . . Robots Rewired . | . . . . Allies Hacked . | . . . . Hacks Repelled . | . . . . Allies | -11 -10 -10 -10 -------- Run | Scr Mat Min Exi Total Allies 1 | . . 1 . Largest Group 1 | . . 1 . Highest-Rated Group 31 | . . 31 . Highest-Rated Ally 31 | . . 31 . Total Orders . | . . . . Ally Attacks 32 | . . 4 28 Total Damage 1268 | . . 63 1205 Kills 11 | . . . 11 Allies Corrupted . | . . . . Allies Melted . | . . . . Turrets Deployed 3 | . . . 3 Intel | -11 -10 -10 -10 ------- Run | Scr Mat Min Exi Robot Analysis Total . | . . . . Derelict Logs Recovered 2 | . . 2 . Drone Launches . | . . . . Drone Recoveries . | . . . . Exploration | -11 -10 -10 -10 ------------- Run | Scr Mat Min Exi Turns Passed 3238 | 165 727 1134 1212 Spaces Moved 1696 | 107 464 564 561 Core 5 | 5 . . . Treads 1180 | . 55 564 561 Legs . | . . . . Wheels 511 | 102 409 . . Hover . | . . . . Flight . | . . . . Fastest Speed 50 | 50 90 180 160 Average Speed 161 | 88 111 180 197 Slowest Speed 200 | 90 200 180 200 Overloaded Moves . | . . . . Propulsion Burnouts . | . . . . Robots Hopped . | . . . . Cave-ins Triggered . | . . . . Exploration Rate (%) 53 | 5 51 89 70 Regions Visited 3 Branch Regions 2 Pre-discovered Areas 2 | . . 1 1 Known Exits Taken . | . . . . Unknown Exits Taken 3 | 1 1 1 . Scrap Searched 2 | . . 2 . Spaces Dug 9 | . 9 . . Terrain Destroyed 50 | 5 45 . . Melee . | . . . . Projectile 9 | . 9 . . AOE 41 | 5 36 . . Actions | -11 -10 -10 -10 --------- Run | Scr Mat Min Exi Total 2049 | 151 598 633 667 Wait 112 | . 35 18 59 Move 1693 | 106 463 563 561 Hop . | . . . . Pick Up 65 | 13 21 5 26 Fast Attach 9 | 2 5 1 1 Attach 8 | 5 1 2 . Detach . | . . . . Swap 12 | . 6 3 3 Drop 36 | . 17 6 13 Fire 114 | 25 50 35 4 Melee . | . . . . Ram . | . . . . Kick . | . . . . Crush . | . . . . Escape Stasis . | . . . . Rewire . | . . . . Trap . | . . . . Miscellaneous . | . . . . Route ------- -11/Scrapyard -10/Materials (discovered 3 exits: [*Mat] / [*Min x2]) -10/Mines (discovered 3 exits: [*Mat x2] / *Exi) -10/Exiles (discovered 2 exits: *Min x2) History --------- Turn | Location | Event 23 | -11/Scrapyard | Discovered new exit (range 15) 166 | -11/Scrapyard | Entered Materials 342 | -10/Materials | Build established: Mutant 450 | -10/Materials | Discovered new exit (range 16) 541 | -10/Materials | Discovered new exit (range 16) 757 | -10/Materials | Discovered new exit (range 6) 893 | -10/Materials | Entered Mines 985 | -10/Mines | Deemed a non-threat by the Exiles lab entrance 985 | -10/Mines | Discovered new exit (range 5) 1143 | -10/Mines | Core integrity fell below 50% 1247 | -10/Mines | Discovered new exit (range 10) 1264 | -10/Mines | Joined a pair of Derelicts in attacking an 0b10 outpost 1422 | -10/Mines | Discovered new exit (range 12) 1479 | -10/Mines | Learned location of Zion (-7) 1835 | -10/Mines | Met a Derelict testing a Signal Generator 1860 | -10/Mines | Found Signal Generator 1880 | -10/Mines | Build established: Scavenger-Mutant 1930 | -10/Mines | Core integrity fell below 20% 2027 | -10/Mines | Entered Exiles 2028 | -10/Exiles | Identified exit to Mines 2069 | -10/Exiles | Met 8R-AWN 2103 | -10/Exiles | Met EX-HEX 2295 | -10/Exiles | Met EX-BIN 2397 | -10/Exiles | Aligned with FarCom system 2399 | -10/Exiles | Given EX-Vault access code 2445 | -10/Exiles | Opened EX-Vault 2448 | -10/Exiles | Build established: Hauler-Mutant 2469 | -10/Exiles | Found Deploy-a-Sentry 2472 | -10/Exiles | Found Deploy-a-Sentry 2478 | -10/Exiles | Found Field Lobotomy Kit 2487 | -10/Exiles | Found Deploy-a-Sentry 2492 | -10/Exiles | Found Trap Reconfigurator 2533 | -10/Exiles | Warned to stay clear of 0b10 Research branches 2599 | -10/Exiles | Met EX-DEC 2681 | -10/Exiles | DAS Turret deployed 2693 | -10/Exiles | DAS Turret deployed 2705 | -10/Exiles | DAS Turret deployed 3128 | -10/Exiles | Attacked by the Exiles 3128 | -10/Exiles | Allies destroyed EX-DEC 3134 | -10/Exiles | Allies destroyed EX-BIN 3144 | -10/Exiles | Allies destroyed EX-HEX 3239 | -10/Exiles | Destroyed by 8R-AWN with 8R-AWN's Boregun Last Messages --------------- 03189_ DAS Turret destroyed. 03191_ HV Slug penetrates DAS Turret. 03191_ HV Slug penetrates Machine. 03191_ HV Slug penetrates DAS Turret. 03191_ HV Slug penetrates Machine. 03193_ HV Slug penetrates DAS Turret. 03193_ DAS Turret suffers critical hit. 03193_ DAS Turret destroyed. 03234_ Penetrated by HV Slug. 03234_ HV Slug penetrates Machine. 03234_ Penetrated by HV Slug. 03234_ HV Slug penetrates Machine. 03236_ Penetrated by HV Slug. 03236_ HV Slug penetrates Machine. 03236_ Machine disabled. 03236_ Penetrated by HV Slug. 03236_ HV Slug penetrates Wall. 03239_ Penetrated by HV Slug. 03239_ HV Slug penetrates Wall. 03239_ Penetrated by HV Slug. Map ----- +----------------------------------------------------+ | ?????????????????????????????????????????????????? | | ?????????????????????????????????????????????????? | | ?????????????????????????????????????????????????? | | ?????????????????????????????????????????????????? | | ?????????????????????????????????????????????????? | | ?????????????????????????????????????????????????? | | ???????????>?????????????????????????????????????? | | ?????????????????????????????????????????????????? | | ?????????????????????????????????????????????????? | | ?????????????????????????????????????????????????? | | ?????????????????????????????????????????????????? | | ?????????????????????????????????????????????????? | | ?????????????????????????????#######?????????????? | | ??????????????? ######???????#!!! "#?????????????? | | ?????????????? #""#??????# "#?????????????? | | ?????????????? ??????# "#?????????????? | | ?????????????" #????## ""#???????????### | | ?????????????? #####" ""#??????????# | | ??????????????# ##" ""???????????#"" | | ???????????????# #"" #????????????#"" | | ??????????????????# #????????????#"" | | ?????????????????????# ##???????????#"" | | ??????????????????????## "#???????????# | | ???????????????########" ###?????????#"" | | ???????????????# !!""""" g ##????????### | | ???????????????#! @"###"" ######???### | | ???????????????#! ! "#?##" """#####X# | | ???????????????#! ##??#" | | ???????????????# """" "###???#"# | | ???????????????######;###?????#### | | ????????????????????##???????????### | | ???????????????????????????????????### | | ?????????????????????????????????????## | | ??????????????????????????????????????## | | ???????????????????????????????????????##" | | ????????????????????????????????????????#""" | | ???????????????????????????????????????##" | | ???????????????????????????????????????#"" | | ??????????????????????????????????????##"" % | | ??????????????????????????????????????#"""! | | ??????????????????????????????????????#" !! | | ??????????????????????????????????????#" %&! % | | ??????????????????????????????????????#" "!! | | ??????????????????????????????????????#" *!! % | | ??????????????????????????????????????## | | ???????????????????????????????????????#"""" | | ???????????????????????????????????????## | | ????????????????????????????????????????#" | | ????????????????????????????????????????# "" | | ????????????????????????????????????????#"" | +----------------------------------------------------+ Best States ------------- Heat Dissipation 25 Energy Generation 10 Energy Capacity 250 Matter Stores 300 Matter Capacity 300 Sight Range 16 Terrain Scan Density 10 Evasion (%) 42 Recoil Reduction 2 Item Schematics ----------------- None Robot Schematics ------------------ None Fabricated ------------ Nothing Alien Tech Used ----------------- None Achievements -------------- None Challenges ------------ None Game ------ Seed GyrokineticEnhancedComputer Manual? 0 Play Time 00:26:55 Cumulative 127.7 hours Start 2020.08.24 @ 19:21:20 End 2020.08.24 @ 19:47:43 Sessions 1 Manual Loads 0 Difficulty Rogue Special Mode None Game No. 156 Rogue 156 Adventurer 0 Explorer 0 Win Type - Total 2 Types 2/0/0/0/0/0/0 Lore% 50 Gallery% 65 Achievement% 47 Wizard Run 0 Options --------- ASCII 0 Keyboard 0 Movement Numpad Keybinds 0 Fullscreen 2 Font 24/Smallcaps Map View 76x50 Tactical HUD 1 Map Filters NONE Filters NONE Steam 1 RUN: d087dc06-9e82-457f-aed6-f1a8af38fe5d